[Event "5th Vera Menchik Memorial 2022"]
[Site "Prag"]
[Date "2022.06.05"]
[Round "5.6"]
[White "Varga, David"]
[Black "Krivanek, Vladimir"]
[Result "1-0"]
[ECO "B32"]
[WhiteElo "2323"]
[BlackElo "2180"]
[Annotator "TA"]
[PlyCount "97"]
[EventDate "2022.06.05"]
[EventType "tourn"]
[EventCountry "CZE"]
[SourceTitle "playchess.com"]
[Source "ChessBase"]
[SourceQuality "1"]
[TimeControl "720+3"]

{[%evp 14,97,16,24,35,41,44,18,37,18,25,0,10,0,22,8,3,10,4,9,13,0,48,27,25,33,47,0,0,0,0,0,441,441,441,66,75,70,65,71,65,65,81,67,81,65,65,67,81,43,81,10,81,65,68,71,78,59,68,29,29,29,29,31,66,31,41,52,77,80,29973,29973,29978,29979,29979,29980,29981,29982,29982,29983,29989,29990,29990,29991,29992,29993]} 1. e4 {[%emt 0:00:03] Postny,E} c5 {[%emt 0:01:55]} 2. Nf3 {[%emt 0:00:01][%cal Bg1f3,Bf3d4,Bd4b5,Bb5a3,Ba3c2][%mdl 32]} Nc6 {[%emt 0:00:01]} 3. d4 {[%emt 0:00:03]} cxd4 {[%emt 0:00:02]} 4. Nxd4 {[%emt 0:00:01]} e5 {[%emt 0:00:01]} 5. Nb5 {[%emt 0:00:08]} d6 {[%emt 0:00:02]} 6. c4 {[%emt 0:00:40]} Be6 {[%emt 0:00:24] outshines the older 6...Be7.} 7. N1c3 {[%emt 0:00:18]} a6 {[%emt 0:00:02]} 8. Na3 {[%emt 0:00:02]} g6 {[%emt 0:01:03] B32: Sicilian: Löwenthal and Kalashnikov Variations.} 9. Be3 {[%emt 0:00:12]} Bg7 {[%emt 0:00:08]} 10. Nc2 {[%emt 0:00:16]} Nf6 {[%emt 0:00:30] The position is equal.} 11. Be2 {[%emt 0:00:02]} O-O {[%emt 0:00:09]} 12. Rc1 {[%emt 0:01:01]} Rc8 {[%emt 0:00:07] [#]} 13. Qd2 $146 {[%emt 0:02:09]} ({Predecessor:} 13. O-O Ne7 14. Na3 Nc6 15. Re1 Nd4 16. f3 Qb6 17. Rb1 Nxe2+ 18. Rxe2 Qb4 19. Rd2 {1-0 (43) Ivanchuk,V (2715)-Jobava,B (2727) Wijk aan Zee 2015 CBM 165 [Postny,E]}) 13... Re8 {[%emt 0:00:26][%cal Oc6d4]} 14. O-O {[%emt 0:00:26]} Nd4 $1 {[%emt 0:02:18]} 15. Nxd4 {[%emt 0:01:39]} exd4 {[%emt 0:00:02]} 16. Bxd4 {[%emt 0:01:55] Hoping for b3.} Bxc4 {[%emt 0:00:10]} 17. f3 $36 {[%emt 0:00:37][%mdl 2048] White has the initiative.} b5 {[%emt 0:01:53]} (17... Bxe2 $11 18. Nxe2 Rxc1 19. Rxc1 d5) 18. b3 {[%emt 0:00:42]} Be6 {[%emt 0:01:06]} 19. Rfd1 {[%emt 0:00:04]} d5 {[%emt 0:00:52]} 20. exd5 {[%emt 0:00:32]} (20. e5 $1 $14 Nd7 21. f4) 20... Nxd5 $11 {[%emt 0:01:07]} 21. Bxg7 {[%emt 0:00:26]} Kxg7 {[%emt 0:00:03]} 22. Nxd5 {[%emt 0:00:12]} Bxd5 $4 {[%emt 0:00:14][%mdl 8192] [#]} (22... Rxc1 $11 {and Black is okay.} 23. Qxc1 Bxd5 24. Qc3+ f6) 23. Rxc8 $18 {[%emt 0:00:53]} ({Not} 23. Qb2+ Qf6 24. Qxf6+ Kxf6 25. Rxc8 Rxc8 26. Rxd5 Rc2 $18) 23... Qxc8 {[%emt 0:00:04]} 24. Bxb5 $2 {[%emt 0:00:12]} ({Inferior is} 24. Qxd5 Rxe2 25. Kf1 Re7 $11) (24. Qb2+ $18 Kg8 25. Rxd5) 24... axb5 $14 {[%emt 0:00:18]} 25. Qxd5 {[%emt 0:00:02][%mdl 4096] Endgame KQR-KQR} Re2 {[%emt 0:00:08]} 26. Qd4+ $1 {[%emt 0:00:14]} ({Don't blunder} 26. Qxb5 $2 Qc2 27. Qxe2 Qxe2 $19) 26... Kg8 {[%emt 0:00:04]} 27. Qd8+ {[%emt 0:00:05]} Qxd8 {[%emt 0:00:02]} 28. Rxd8+ {[%emt 0:00:01] KR-KR} Kg7 {[%emt 0:00:01]} 29. Rb8 {[%emt 0:00:09]} Rxa2 {[%emt 0:00:02]} 30. Rxb5 {[%emt 0:00:01]} Kf6 {[%emt 0:00:04]} 31. h3 {[%emt 0:00:08]} h5 {[%emt 0:00:02]} 32. Kh2 {[%emt 0:00:02]} (32. h4 $16) 32... Ke6 {[%emt 0:00:02]} (32... h4 $11) 33. h4 $16 {[%emt 0:00:07]} Rb2 {[%emt 0:00:01]} 34. Kh3 {[%emt 0:00:08]} Kf6 {[%emt 0:00:02]} 35. g4 {[%emt 0:00:04]} hxg4+ {[%emt 0:00:10]} 36. fxg4 {[%emt 0:00:05]} Rc2 {[%emt 0:00:04]} 37. Kg3 {[%emt 0:00:01]} Rc3+ {[%emt 0:00:03]} 38. Kf4 {[%emt 0:00:01]} Rh3 {[%emt 0:00:03]} 39. Rb6+ {[%emt 0:00:03]} Kg7 {[%emt 0:00:04]} 40. Kg5 {[%emt 0:00:13]} Rf3 {[%emt 0:00:05] ( -> ...f6+)} 41. h5 {[%emt 0:00:04]} f6+ $2 {[%emt 0:00:03][%mdl 8192] [#] A mistake that costs the game.} (41... gxh5 $16 42. gxh5 f6+ 43. Kg4 Rf1) 42. Rxf6 $3 {[%emt 0:00:02][%mdl 512] White mates.} Rxf6 {[%emt 0:00:04] KR-K3P} (42... Rg3 43. Rxg6+) 43. h6+ {[%emt 0:00:00]} Kf7 {[%emt 0:00:07]} 44. h7 {[%emt 0:00:01]} Rb6 {[%emt 0:00:01]} 45. h8=Q {[%emt 0:00:03]} Rb5+ {[%emt 0:00:03]} 46. Kh6 {[%emt 0:00:05]} Rxb3 {[%emt 0:00:02]} 47. Qg7+ {[%emt 0:00:02]} Ke8 {[%emt 0:00:10]} 48. Qg8+ {[%emt 0:00:12]} Ke7 {[%emt 0:00:03]} 49. Qxb3 {[%emt 0:00:00] Weighted Error Value: White=0.25 (precise) /Black=0.36} 1-0

[Event "5th Vera Menchik Memorial 2022"]
[Site "Prag"]
[Date "2022.06.05"]
[Round "5.7"]
[White "Brejnik, Gustav"]
[Black "Burdalev, Kirill"]
[Result "1/2-1/2"]
[ECO "D15"]
[WhiteElo "2246"]
[BlackElo "2381"]
[Annotator "TA"]
[PlyCount "126"]
[EventDate "2022.06.05"]
[EventType "tourn"]
[EventCountry "CZE"]
[SourceTitle "playchess.com"]
[Source "ChessBase"]
[SourceQuality "1"]
[TimeControl "720+3"]

{[%evp 11,126,25,30,20,40,33,50,53,77,50,116,110,122,114,123,37,35,33,73,63,127,136,148,139,154,132,153,156,155,112,110,104,108,101,99,111,116,102,121,110,131,123,193,109,155,109,112,69,81,70,95,84,82,0,0,0,0,-7,-7,-28,-21,-23,-18,-26,-35,-27,0,0,0,0,0,0,0,0,0,0,0,0,0,0,0,0,0,-3,-3,-35,0,-5061,-1459,-5547,-4706,-12833,-12681,-29946,-608,-4594,0,-12825,-29955,-29982,-29983,-29983,0,0,0,0,0,0,0,0,0,0,0,0,0,0,0]} 1. d4 {[%emt 0:00:01]} d5 {[%emt 0:00:01]} 2. c4 {[%emt 0:00:01]} c6 {[%emt 0:00:04]} 3. Nc3 {[%emt 0:00:02]} Nf6 {[%emt 0:00:01]} 4. e3 {[%emt 0:00:01]} a6 {[%emt 0:00:12]} 5. Nf3 {[%emt 0:00:20]} b5 {[%emt 0:00:44]} 6. b3 {[%emt 0:00:01]} Bg4 {[%emt 0:00:07]} 7. a4 {[%emt 0:00:07][%cal Ra4b5] D15: Slav Defence: 4 Nc3 a6 and gambit lines after 4 Nc3 dxc4.} b4 {[%emt 0:01:05] 7...bxc4 might become the main line.} 8. Ne2 {[%emt 0:00:03]} e6 {[%emt 0:00:48]} 9. Ne5 {[%emt 0:00:51] f3 is the strong threat. White is slightly better.} Bh5 {[%emt 0:00:03] [#]} 10. Qc2 $146 {[%emt 0:00:11]} (10. f3 $5 {[%cal Rh2h4]}) ({Predecessor:} 10. Bb2 Nfd7 11. Nd3 a5 12. Ndf4 Bg4 13. h3 Bf5 14. Ng3 Bd6 15. Nxf5 exf5 16. cxd5 Bxf4 17. dxc6 Nxc6 18. exf4 {1-0 (39) Milekic,D (2309)-Zmijanac,D (2126) Belgrade 2018}) 10... Nfd7 {[%emt 0:00:16]} (10... Bg6 $14 11. Nxg6 hxg6) 11. Nf4 $16 {[%emt 0:01:56]} Bg6 {[%emt 0:00:30]} 12. Nexg6 {[%emt 0:01:27] White is much more active.} hxg6 {[%emt 0:00:02]} 13. cxd5 {[%emt 0:00:20]} ({White should play} 13. a5 $16) 13... cxd5 $14 {[%emt 0:00:14]} 14. a5 {[%emt 0:00:07]} g5 {[%emt 0:00:32]} 15. Nd3 {[%emt 0:00:14]} Bd6 {[%emt 0:00:02]} (15... Ra7 $14) 16. Bd2 $16 {[%emt 0:00:05]} Ra7 {[%emt 0:02:59]} 17. Bxb4 {[%emt 0:00:03]} Rc7 {[%emt 0:00:10]} 18. Qd2 {[%emt 0:00:08]} Qe7 {[%emt 0:00:34]} 19. Bxd6 {[%emt 0:00:53]} Qxd6 {[%emt 0:00:01]} 20. Qb4 {[%emt 0:00:01]} Ke7 {[%emt 0:00:32]} 21. Be2 {[%emt 0:00:36]} Nc6 {[%emt 0:00:11]} 22. Qxd6+ {[%emt 0:00:24]} Kxd6 {[%emt 0:00:04]} 23. O-O {[%emt 0:00:30]} Rb8 {[%emt 0:00:12]} 24. Rfb1 {[%emt 0:00:19]} Rcb7 {[%emt 0:00:33]} 25. b4 {[%emt 0:00:41]} Ra7 {[%emt 0:02:01]} 26. Ra4 {[%emt 0:00:35]} e5 {[%emt 0:00:37]} (26... Rab7 $16 {was necessary.} 27. Raa1 Ra7) 27. dxe5+ {[%emt 0:00:18]} (27. Nc5 $18) 27... Ncxe5 {[%emt 0:00:04]} ({Better is} 27... Ndxe5 28. Nxe5 Nxe5) 28. Nxe5 {[%emt 0:00:08]} (28. Nc5 $142) 28... Nxe5 {[%emt 0:00:01]} 29. Kf1 {[%emt 0:00:23]} Nc4 {[%emt 0:00:01] [#]} 30. Ke1 {[%emt 0:00:01][%cal Oe3e4] Inhibits Nd2.} Rc7 {[%emt 0:00:13]} 31. Rc1 {[%emt 0:00:26][%cal Oe3e4]} f5 {[%emt 0:00:07] [#]} 32. Bxc4 {[%emt 0:00:13]} (32. h3 $1 $16) 32... Rxc4 $11 {[%emt 0:00:22]} 33. Rxc4 {[%emt 0:00:09]} dxc4 $16 {[%emt 0:00:01][%mdl 4096] Endgame KR-KR} 34. Kd2 {[%emt 0:00:01] Black must now prevent Kc3.} Kc6 {[%emt 0:00:00]} 35. Kc3 {[%emt 0:00:04]} Kb5 $1 {[%emt 0:00:00][%mdl 1024] Black has compensation.} 36. Ra1 {[%emt 0:00:16]} Rd8 {[%emt 0:00:01] Against Rd1} 37. Rb1 {[%emt 0:01:58]} Rd3+ {[%emt 0:00:01]} 38. Kc2 {[%emt 0:00:00]} Rd7 {[%emt 0:00:14]} 39. g4 {[%emt 0:00:00]} g6 {[%emt 0:00:05]} 40. gxf5 {[%emt 0:00:00]} gxf5 {[%emt 0:00:01]} 41. Rg1 {[%emt 0:00:00]} g4 {[%emt 0:00:01]} 42. e4 {[%emt 0:00:00]} fxe4 {[%emt 0:00:05] aiming for ...Rf7.} 43. Rxg4 {[%emt 0:00:00]} Rf7 {[%emt 0:00:04]} 44. Rxe4 {[%emt 0:00:00]} Rxf2+ {[%emt 0:00:01]} 45. Kc3 {[%emt 0:00:00]} Rf3+ {[%emt 0:00:05]} 46. Kc2 {[%emt 0:00:00]} Rh3 {[%emt 0:00:06]} 47. Re2 {[%emt 0:00:00]} Kxb4 {[%emt 0:00:01]} 48. Kb2 {[%emt 0:00:00]} Kxa5 {[%emt 0:00:02] Threatens to win with ...Kb4.} 49. Rg2 $2 {[%emt 0:00:00][%mdl 8192]} (49. Re8 $11) 49... Kb4 $19 {[%emt 0:00:01] And now ...a5 would win.} 50. Kc2 {[%emt 0:00:07]} a5 {[%emt 0:00:02][%cal Ba6a5,Ba5a4,Ba4a3][%mdl 32]} 51. Kb2 {[%emt 0:00:02]} a4 {[%emt 0:00:00] ( -> ...a3+)} 52. Ka2 {[%emt 0:00:02]} Kc5 {[%emt 0:00:15]} (52... a3 $142 53. Rf2 Rh4 54. Rf8 Rxh2+ 55. Kb1 Rh1+ 56. Ka2 Rh2+ 57. Kb1 Rb2+ 58. Ka1 Rd2 59. Kb1 Rb2+ 60. Ka1 Rd2 61. Rc8 c3 62. Kb1 Kb3 63. Rb8+ Kc4 64. Rc8+ Kd3 65. Rd8+ Ke2 66. Rc8 Rd1+ 67. Ka2 Kd2 68. Kxa3 c2 69. Rd8+ Kc3 70. Rc8+ Kd2 71. Rd8+ Kc1 72. Rg8 Kb1 73. Rb8+ Ka1 74. Rc8 c1=Q+ 75. Rxc1+ Rxc1 76. Kb3 Rc8 77. Kb4 Ka2 78. Kb5 Kb3 79. Kb6 Kb4 80. Kb7 Rc4 81. Kb6 Rc1 82. Ka6 Kc5 83. Kb7 Kb5 84. Ka7 Kc6 85. Kb8 Ra1 86. Kc8 Ra8#) 53. Kb2 {[%emt 0:00:02]} Kb4 {[%emt 0:00:04]} (53... a3+ $142 54. Kb1 Kb4) 54. Ka2 {[%emt 0:00:01]} a3 {[%emt 0:00:02]} 55. Rc2 {[%emt 0:00:08]} c3 {[%emt 0:00:06]} 56. Rg2 {[%emt 0:00:04]} Kc4 $2 {[%emt 0:00:02]} (56... Rh4 {mates} 57. h3 Rd4 58. Rg6 Rd2+ 59. Kb1 a2+ 60. Ka1 c2 61. Rc6 Kb3 62. Rb6+ Kc4 63. Rc6+ Kd3 64. h4 Ke2 65. Rc3 Kd1 66. Kxa2 c1=Q+ 67. Kb3 Qb1+ 68. Kc4 Qe4+ 69. Kb5 Qb7+ 70. Ka4 Rb2 71. Rd3+ Ke2 72. Rd2+ Kxd2 73. h5 Qb4#) 57. Kxa3 $11 {[%emt 0:00:04] The position is equal.} Kd3 {[%emt 0:00:03]} (57... Rh5 $5 58. Rg4+ Kd3 $11) 58. Kb3 {[%emt 0:00:06]} Rh6 {[%emt 0:00:03]} 59. Rg3+ {[%emt 0:00:01]} Ke2 {[%emt 0:00:01]} 60. Rxc3 {[%emt 0:00:03]} Rb6+ {[%emt 0:00:03]} 61. Kc4 {[%emt 0:00:02]} Rc6+ {[%emt 0:00:01]} 62. Kd4 {[%emt 0:00:01]} Rxc3 {[%emt 0:00:01]} 63. Kxc3 {[%emt 0:00:01] White wants to mate with h4.} Kf3 {[%emt 0:00:01] What a bad dream for Black.  Weighted Error Value: White=0.65/Black=0.35} 1/2-1/2

[Event "5th Vera Menchik Memorial 2022"]
[Site "Prag"]
[Date "2022.06.05"]
[Round "5.8"]
[White "Slanec, Jan"]
[Black "Hrabusa, Matej"]
[Result "0-1"]
[ECO "B23"]
[WhiteElo "1957"]
[BlackElo "2361"]
[Annotator "TA"]
[PlyCount "92"]
[EventDate "2022.06.05"]
[EventType "tourn"]
[EventCountry "CZE"]
[SourceTitle "playchess.com"]
[Source "ChessBase"]
[SourceQuality "1"]
[TimeControl "720+3"]

{[%evp 9,92,-11,0,-25,-6,-41,0,-3,2,-1,16,22,37,18,22,23,81,65,72,71,77,78,69,55,70,89,112,64,57,79,66,62,176,192,183,184,168,177,254,102,112,103,84,38,61,53,112,28,160,150,293,-320,268,-424,-416,-412,-403,-404,-402,-456,-457,-529,-506,-599,-589,-29991,-3170,-2306,-1821,-1262,-359,-510,-308,-450,-464,-1391,164,-29991,25,-29996,-29997,-29997,-29998,-29998,-29999]} 1. e4 {[%emt 0:00:02]} c5 {[%emt 0:00:01]} 2. Nc3 {[%emt 0:00:01]} d6 {[%emt 0:00:01]} 3. d3 {[%emt 0:00:01]} Nc6 {[%emt 0:00:01]} 4. f4 {[%emt 0:00:01]} g6 {[%emt 0:00:02]} 5. Nf3 {[%emt 0:00:01]} Bg7 {[%emt 0:00:01]} 6. h3 {[%emt 0:00:01] B23: Closed Sicilian: Lines without g3.} e5 {[%emt 0:00:04]} 7. g4 {[%emt 0:00:03]} exf4 {[%emt 0:00:07]} (7... h5 $5 {[%cal Rh5g4]} 8. g5 Nge7 $11) 8. Bxf4 {[%emt 0:00:01] The position is equal.} Nge7 {[%emt 0:00:02]} 9. Bg2 {[%emt 0:00:15]} O-O {[%emt 0:00:02] [#]} 10. Qd2 $146 {[%emt 0:00:04]} ({Predecessor:} 10. O-O Rb8 11. Qd2 b5 12. Rae1 b4 13. Nd1 Be6 14. Bh6 f6 15. Bxg7 Kxg7 16. c3 Bxa2 {½-½ (62) Phildius,B (2312)-Womacka,M (2436) Playchess.com INT 2005}) 10... d5 {[%emt 0:00:32]} 11. Bh6 {[%emt 0:00:24]} d4 {[%emt 0:00:20]} 12. Ne2 {[%emt 0:00:05]} Qa5 {[%emt 0:00:19]} (12... f6 $11) 13. c3 $1 $16 {[%emt 0:00:15]} dxc3 {[%emt 0:00:02]} 14. bxc3 {[%emt 0:00:05]} Be6 {[%emt 0:00:14]} 15. Bxg7 {[%emt 0:00:02]} Kxg7 {[%emt 0:00:01]} 16. Nf4 {[%emt 0:00:12]} Rad8 {[%emt 0:00:14]} 17. O-O $1 {[%emt 0:00:30]} Bc8 {[%emt 0:00:14]} 18. Rf2 {[%emt 0:01:24]} (18. Rae1 $1 $16) 18... f6 $14 {[%emt 0:00:27]} 19. Raf1 {[%emt 0:00:14]} Qc7 {[%emt 0:00:34]} 20. d4 {[%emt 0:01:27]} cxd4 {[%emt 0:00:27]} ({Black should play} 20... Ne5 $14) 21. cxd4 $18 {[%emt 0:00:02][%cal Bc3d4,Bd4d5][%mdl 32]} (21. Nxd4 $6 Qd6 $14) 21... Ne5 {[%emt 0:00:28]} 22. d5 $1 {[%emt 0:02:32]} ({Much less strong is} 22. Rc1 $6 Qb6 $16) 22... Nxf3+ {[%emt 0:00:15]} 23. Rxf3 {[%emt 0:00:12]} Nc6 {[%emt 0:00:08]} (23... Kg8 $142 24. Qc3 Qxc3 25. Rxc3 Rd6) 24. Rc1 {[%emt 0:00:36]} (24. Qc3 $18 {is the precise move to win.}) 24... Qb6+ $16 {[%emt 0:00:07]} 25. Kh1 {[%emt 0:00:01]} Ne5 {[%emt 0:00:18]} 26. Rfc3 {[%emt 0:00:00]} ({Better is} 26. Rb3 $16 Qd6 27. Rxc8 $1 Rxc8 28. Ne6+ Kh8 29. Nxf8 Qxf8 30. Rxb7) 26... Kg8 $1 $14 {[%emt 0:00:32]} 27. Rc7 {[%emt 0:00:46]} Qd6 {[%emt 0:00:43]} (27... Bd7 $14) 28. Qf2 {[%emt 0:01:47]} (28. Nd3 $16) 28... g5 {[%emt 0:01:22]} (28... Bd7 $1 $11 {remains equal.}) 29. Nh5 $16 {[%emt 0:00:06]} Nd3 {[%emt 0:00:02]} (29... Bd7 $16 {keeps fighting.}) 30. Rg7+ $18 {[%emt 0:01:04]} ({Inferior is} 30. Qxa7 Nxc1 31. Rxc1 Rf7 $11) 30... Kh8 {[%emt 0:00:01] Dancing on a razor blade.} 31. Qe3 {[%emt 0:00:34][%mdl 8192] Black converts the advantage convincingly.} (31. Qc2 $1 $18 {[%cal Rc2d3] is the narrow road to win.} Ne5 32. Qc7 Qxc7 33. Rcxc7) 31... Nxc1 $19 {[%emt 0:00:06]} 32. Qxc1 {[%emt 0:00:00]} Rd7 {[%emt 0:00:09]} 33. Rxd7 {[%emt 0:00:10]} Bxd7 {[%emt 0:00:02]} 34. Qc3 {[%emt 0:00:06]} Qe5 {[%emt 0:00:10]} 35. Qb4 {[%emt 0:00:02][%cal Rb4f8]} Rc8 {[%emt 0:00:08]} 36. Bf1 {[%emt 0:00:28]} a5 {[%emt 0:00:37]} 37. Qxb7 {[%emt 0:00:01] [#]} Qxe4+ {[%emt 0:00:03]} (37... Rc2 $142 $1 38. Qa8+ Bc8 39. Bg2 Rc1+ 40. Bf1 Qxe4+ 41. Kg1 Qe3+ 42. Kg2 Rc2+ 43. Kh1 Qf3+ 44. Kg1 Qf2+ 45. Kh1 Qxf1#) 38. Kg1 {[%emt 0:00:01]} Qe3+ {[%emt 0:00:35]} 39. Kh1 {[%emt 0:00:01] [#]} Qe7 $2 {[%emt 0:00:07]} (39... Rc2 $1 {( -> ...Qf3+)} 40. Qb8+ Be8) 40. Qb6 {[%emt 0:00:14]} (40. Qb2 $142 Qe5 41. Qxe5 fxe5 42. Kg2) 40... Rf8 {[%emt 0:00:18] Hoping for ...Qe4+.} 41. Bg2 {[%emt 0:00:03]} (41. Qxa5 $142 Qe5 42. Qa7 Qxd5+ 43. Kg1) 41... Qe5 {[%emt 0:00:14]} 42. Qb7 {[%emt 0:00:00] [#]} (42. Kg1 $142 Be8 43. Qe6) 42... Kg8 $4 {[%emt 0:00:06][%mdl 8192]} 43. Qc7 {[%emt 0:00:18][%mdl 8192]} Rb8 $2 44. Qxd7 $4 {[%emt 0:00:00][%mdl 8192]} (44. Nxf6+ $11 Qxf6 45. Qxb8+ Kf7 46. Qc7) 44... Rb1+ {[%emt 0:00:04] Black mates.} 45. Bf1 {[%emt 0:00:00]} Rxf1+ {[%emt 0:00:02]} 46. Kg2 {[%emt 0:00:00]} Qe2+ {[%emt 0:00:02] Weighted Error Value: White=1.00/Black=1.01} 0-1

[Event "5th Vera Menchik Memorial 2022"]
[Site "Prag"]
[Date "2022.06.05"]
[Round "5.9"]
[White "Richtrova, Eliska"]
[Black "Soural, Jan"]
[Result "1/2-1/2"]
[ECO "B25"]
[WhiteElo "2204"]
[BlackElo "2140"]
[Annotator "TA"]
[PlyCount "100"]
[EventDate "2022.06.05"]
[EventType "tourn"]
[EventCountry "CZE"]
[SourceTitle "playchess.com"]
[Source "ChessBase"]
[SourceQuality "1"]
[TimeControl "720+3"]

{[%evp 23,100,-1,29,29,31,37,67,68,64,77,68,10,17,17,19,0,0,0,17,-7,-2,-6,0,0,0,-17,-21,-46,-20,-395,-314,-231,-139,-635,-561,-554,-19,-14,-23,-33,-35,-112,-69,-97,-8,-191,-114,-151,-150,-130,-8,-24,0,-16,0,0,0,-16,-16,-516,-12,-9,-9,-9,-9,-64,0,-9,-9,-9,0,-9,-9,-9,0,-24,-24,-24,-16]} 1. e4 {[%emt 0:00:02]} c5 {[%emt 0:00:02]} 2. Nc3 {[%emt 0:00:02]} Nc6 {[%emt 0:00:03]} 3. g3 {[%emt 0:00:02]} g6 {[%emt 0:00:05]} 4. Bg2 {[%emt 0:00:01]} Bg7 {[%emt 0:00:01]} 5. d3 {[%emt 0:00:04]} e6 {[%emt 0:00:06]} 6. Be3 {[%emt 0:00:03]} d6 {[%emt 0:00:35]} 7. Qd2 {[%emt 0:00:05]} Rb8 {[%emt 0:00:08]} 8. Nh3 {[%emt 0:00:12]} b5 {[%emt 0:00:35]} 9. O-O {[%emt 0:00:02]} Nge7 {[%emt 0:00:36]} 10. Bh6 {[%emt 0:00:08]} O-O {[%emt 0:00:03]} 11. Bxg7 {[%emt 0:00:40]} Kxg7 {[%emt 0:00:01]} 12. f4 {[%emt 0:00:01]} Nd4 {[%emt 0:01:02]} 13. Nd1 {[%emt 0:00:27] B25: Closed Sicilian: 3 g3, lines without early Be3.} b4 {[%emt 0:00:07]} 14. Ne3 {[%emt 0:00:03]} f5 {[%emt 0:00:41]} 15. c3 {[%emt 0:01:04] White is slightly better.} bxc3 {[%emt 0:00:02]} 16. bxc3 {[%emt 0:00:01]} Ndc6 {[%emt 0:00:20]} 17. g4 {[%emt 0:01:17] [#]} (17. Ng5 $14) 17... d5 $146 {[%emt 0:01:15]} ({Predecessor:} 17... Bd7 18. Kh1 Qc7 19. Rac1 Rb5 20. gxf5 exf5 21. d4 fxe4 22. d5 Na5 23. Ng5 Nf5 24. Bxe4 Nxe3 25. Qxe3 {1-0 (33) Konsek,P (1979)-Thuerauf,P (1919) Zirndorf 2002}) 18. gxf5 {[%emt 0:00:50]} gxf5 {[%emt 0:00:23]} 19. exd5 {[%emt 0:01:03]} (19. Qf2 {is more complex.} d4 20. cxd4 Nxd4 21. exf5 Nexf5 22. Rac1) 19... exd5 {[%emt 0:00:03]} 20. Kh1 {[%emt 0:00:41]} Kh8 {[%emt 0:00:20]} 21. Rg1 {[%emt 0:00:26]} d4 {[%emt 0:01:04]} 22. Nc4 {[%emt 0:00:53]} dxc3 {[%emt 0:00:04]} 23. Qxc3+ {[%emt 0:00:15]} Qd4 {[%emt 0:00:00]} 24. Qa3 {[%emt 0:00:17]} (24. Qe1 $5 {[%cal Rh3g5]}) 24... Be6 {[%emt 0:00:57]} 25. Rac1 {[%emt 0:00:08]} Bd5 {[%emt 0:00:25] [#] Strongly threatening ...Rg8.} (25... Rg8 $5 {[%cal Re6d5]} 26. Qc3 (26. Ng5 Bd5 $17) 26... Qxc3 27. Rxc3 Nd4 $15) 26. Rc2 $2 {[%emt 0:00:31][%mdl 8192]} (26. Na5 $11) 26... Nb4 {[%emt 0:01:08]} 27. Re2 {[%emt 0:00:41]} Ng6 {[%emt 0:00:01]} 28. Qxa7 $2 {[%emt 0:00:18][%mdl 8192]} (28. Bxd5 $17 Qxd5+ 29. Reg2) 28... Rb7 {[%emt 0:00:30]} 29. Qa3 {[%emt 0:00:21]} Qxd3 $2 {[%emt 0:00:53]} (29... Nxd3 $19 30. Ne3 Ngxf4 31. Nxf4 Nxf4 32. Bxd5 Nxe2 33. Bxb7 Nxg1) 30. Qxd3 $11 {[%emt 0:00:18]} Bxg2+ {[%emt 0:00:01]} 31. Kxg2 {[%emt 0:00:38]} Nxd3 {[%emt 0:00:01]} 32. Kf3 {[%emt 0:00:03]} (32. Kh1 $15) 32... Rb4 {[%emt 0:00:25]} 33. Rc2 {[%emt 0:00:12]} Re8 {[%emt 0:00:36]} (33... Rd8 $17 {next ...Ra4 is good for Black.} 34. Kg2 Kg7) 34. Nd6 $2 {[%emt 0:00:19]} (34. Rc3 $11 {and White stays safe.}) 34... Ne1+ {[%emt 0:00:20]} ({Black should try} 34... Re1 $19 35. Re2 Rxg1 36. Re8+ Kg7 37. Nxg1 Kf6) 35. Rxe1 $17 {[%emt 0:00:01]} Rxe1 {[%emt 0:00:00]} 36. Rxc5 {[%emt 0:00:04]} Ra1 {[%emt 0:00:27]} (36... Rf1+ $17 37. Ke3 Nxf4 38. Nxf5 Ng2+ 39. Ke2 Re1+ 40. Kf2 Rb2+ 41. Kg3 Re8) 37. Nxf5 {[%emt 0:00:05] [#] Threatening mate with Rc8+.} Kg8 {[%emt 0:00:14]} 38. Ra5 {[%emt 0:00:16]} Rb2 {[%emt 0:00:07][%mdl 1024] Black has compensation.} 39. Ra8+ {[%emt 0:00:30]} Kf7 {[%emt 0:00:01]} 40. Ng5+ {[%emt 0:00:05]} Kf6 {[%emt 0:00:11]} 41. Kg4 $2 {[%emt 0:00:17][%mdl 8192]} (41. Ne3 $11) 41... Rg1+ $2 {[%emt 0:00:01]} (41... h5+ $1 $19 42. Kxh5 Rxh2+ 43. Kg4 Rg1+ 44. Kf3 Kxf5 45. Ra5+ Kf6 46. Ra6+ Kg7) 42. Ng3 $11 {[%emt 0:00:01]} Rxh2 {[%emt 0:00:05] Hoping for ...Rh4+.} 43. Ra6+ {[%emt 0:00:06]} Ke7 {[%emt 0:00:02]} 44. Nxh7 {[%emt 0:00:11]} (44. Ra7+ $11 Kd8 45. Ra8+ (45. Nf3 $2 h5+ 46. Kf5 Nh4+ 47. Nxh4 Rxg3 $19) 45... Kc7 46. Ra7+ (46. Nf3 $2 h5+ 47. Kf5 Nh4+ 48. Nxh4 Rxg3 $19) 46... Kd6 47. Rxh7 (47. Nf3 $2 h5+ 48. Kf5 Nh4+ 49. Nxh4 Rxg3 $19) 47... Rxh7 48. Nxh7) 44... Kd7 {[%emt 0:00:09]} 45. Rxg6 {[%emt 0:00:06]} Rxh7 {[%emt 0:00:01] KRR-KRN} 46. f5 {[%emt 0:00:31]} Rh2 {[%emt 0:00:02]} 47. Kf4 {[%emt 0:00:00]} Rf2+ {[%emt 0:00:01]} 48. Ke5 {[%emt 0:00:00]} Rfg2 {[%emt 0:00:02]} 49. Ne4 {[%emt 0:00:00]} Rxg6 {[%emt 0:00:03]} 50. fxg6 {[%emt 0:00:00]} Rxg6 {[%emt 0:00:01] Weighted Error Value: White=0.84/Black=0.66} 1/2-1/2